[Event "40th Nezhmetdinov Rapid 2018"]
[Site "Kazan"]
[Date "2018.09.12"]
[Round "11"]
[White "Sarana, Alexey"]
[Black "Bocharov, Dmitry"]
[Result "1-0"]
[ECO "A06"]
[WhiteElo "2634"]
[BlackElo "2562"]
[Annotator "RC"]
[PlyCount "94"]
[EventDate "2018.09.11"]
[EventType "swiss"]
[EventCountry "RUS"]
[SourceTitle "playchess.com"]
[Source "ChessBase"]
[SourceQuality "1"]
[TimeControl "900+10"]

1. Nf3 {[%emt 0:00:00]} d5 {[%emt 0:00:00]} 2. d4 {[%emt 0:00:00]} Bf5 {[%emt 0:00:33]} 3. c4 {[%emt 0:00:00]} e6 {[%emt 0:00:02]} 4. Nc3 {[%emt 0:00:00]} Nf6 {[%emt 0:00:24]} 5. Bf4 {[%emt 0:00:03]} c6 {[%emt 0:01:18]} 6. Qb3 {[%emt 0:00:24]} b6 {[%emt 0:00:14]} 7. e3 {[%emt 0:01:29]} Bd6 {[%emt 0:01:01]} 8. Ne5 {[%emt 0:00:34]} O-O {[%emt 0:00:39]} 9. Be2 {[%emt 0:00:04]} Qe7 {[%emt 0:00:36]} 10. O-O {[%emt 0:01:07]} Rc8 {[%emt 0:00:39]} 11. Rac1 {[%emt 0:01:08]} Qb7 {[%emt 0:00:59]} 12. cxd5 {[%emt 0:03:22]} exd5 {[%emt 0:00:43]} 13. Bf3 {[%emt 0:00:34]} Be6 {[%emt 0:03:18]} 14. Nd3 {[%emt 0:01:15]} Bf8 {[%emt 0:01:18]} 15. h3 {[%emt 0:02:49]} Nbd7 {[%emt 0:00:10]} 16. Rfd1 {[%emt 0:00:04]} a5 {[%emt 0:00:50]} 17. a4 {[%emt 0:00:02]} h6 {[%emt 0:00:29]} 18. Bh2 {[%emt 0:00:09]} Re8 {[%emt 0:00:07]} 19. Nf4 {[%emt 0:00:48]} Bd6 {[%emt 0:00:49]} 20. Bg3 {[%emt 0:00:30]} Bf5 {[%emt 0:00:48]} 21. Nfxd5 {[%emt 0:02:29]} Bxg3 {[%emt 0:00:06]} 22. Nxf6+ {[%emt 0:00:01]} Nxf6 {[%emt 0:00:02]} 23. fxg3 {[%emt 0:00:01]} Rxe3 {[%emt 0:00:08]} 24. Qc4 {[%emt 0:00:04]} Rc8 {[%emt 0:00:32]} 25. g4 {[%emt 0:00:08]} Be6 {[%emt 0:00:54]} 26. d5 {[%emt 0:00:38]} Nxd5 {[%emt 0:00:42]} 27. Bxd5 {[%emt 0:00:09]} cxd5 {[%emt 0:01:24]} 28. Qd4 {[%emt 0:00:01]} Rg3 {[%emt 0:00:14]} 29. Qe5 {[%emt 0:00:02]} Rgxc3 {[%emt 0:00:14]} 30. Rxc3 {[%emt 0:00:01]} Rc5 {[%emt 0:00:02]} 31. Rdc1 {[%emt 0:00:15]} Qc6 {[%emt 0:00:02]} 32. Qd4 {[%emt 0:00:14]} Rc4 {[%emt 0:00:06]} 33. Rxc4 {[%emt 0:00:26]} dxc4 {[%emt 0:00:02]} 34. b3 {[%emt 0:00:25]} Qe8 {[%emt 0:00:58]} 35. bxc4 {[%emt 0:00:13]} Qxa4 {[%emt 0:00:01]} 36. Qxb6 {[%emt 0:00:11]} Qa3 {[%emt 0:00:06]} 37. Qd8+ {[%emt 0:00:10]} Kh7 {[%emt 0:00:01]} 38. Qd2 {[%emt 0:00:07]} Qc5+ {[%emt 0:00:19]} 39. Qf2 {[%emt 0:00:03]} Qc6 {[%emt 0:00:02]} 40. c5 {[%emt 0:00:06]} a4 {[%emt 0:00:02]} 41. Qc2+ {[%emt 0:00:03]} g6 {[%emt 0:00:03]} 42. Qc3 {[%emt 0:00:04]} Bd5 {[%emt 0:00:03]} 43. Rc2 {[%emt 0:00:04]} Bb3 {[%emt 0:00:19]} 44. Rd2 {[%emt 0:00:07]} Be6 {[%emt 0:00:04]} 45. Rd8 {[%emt 0:00:09]} f6 {[%emt 0:00:53]} 46. Rd6 {[%emt 0:00:02]} Qe4 {[%emt 0:00:02]} 47. Qxf6 {[%emt 0:00:04]} Qd4+ 1-0